Cogmind - Beta 16.1 @@@ ROGUE MODE // 2026.03.05 @ 11:42:11 // Winter2019/RPGLIKE Player: Jaegerpls Result: Destroyed by Y-45 Defender with Heavy Assault Rifle Performance ------------- Evolutions (0) 0 Regions Visited (3) 600 Robots Destroyed (56) 280 Value Destroyed (1673) 1673 Prototype IDs (13) 260 Alien Tech Used (0) 0 Bonus (0) 0 TOTAL SCORE: 2813 Bonus ------- None Cogmind --------- Core Integrity 0/600 Matter 266/300 Energy 345/345 System Corruption 0% Temperature Cool (10) Movement Treading (160) Location -9/Recycling Parts ------- > --- POWER (2) -------- Improved Ion Engine Meta Core > --- PROPULSION (3+1) - Light Treads Spiked Treads Spiked Treads > --- UTILITY (5+1) ---- Improved Terrain Scanner Improved Targeting Computer Scrap Shield Hacking Suite Makeshift System Restoration Module (+) > --- WEAPON (3+1) ----- Barrage Gun Barrage Gun Barrage Gun > --- INVENTORY (2) ---- Heavy Hammer Peak State ------------ > --- POWER ------------ Improved Ion Engine Meta Core > --- PROPULSION ------- Light Treads Spiked Treads Spiked Treads > --- UTILITY ---------- Improved Terrain Scanner Improved Targeting Computer Scrap Shield Hacking Suite Makeshift System Restoration Module > --- WEAPON ----------- Barrage Gun Barrage Gun Barrage Gun > --- INVENTORY -------- Heavy Hammer [Rating: 45] Favorites ----------- Power Light Ion Engine Engine Light Ion Engine Power Core Meta Core Propulsion Hover Unit Treads Spiked Treads Wheel Wheel Hover Unit Hover Unit Utility Improved Terrain Scanner Device Improved Terrain Scanner Processor Improved Targeting Computer Hackware Hacking Suite Protection Scrap Shield Weapon Heavy Hammer Energy Gun Medium Laser Energy Cannon Particle Cannon Ballistic Gun Barrage Gun Special Weapon Enhanced Flamer Impact Weapon Heavy Hammer Build | -11 -10 -10 -9 ------- Run | Yrd Mat Sub Rec Slots Evolved 9 | 4 3 1 1 Power 1 | . 1 . . Propulsion 2 | 1 1 . . Utility 4 | 2 1 1 . Weapon 2 | 1 . . 1 Parts Attached 32 | 6 13 10 3 Power 4 | 1 1 1 1 Engine 3 | 1 1 . 1 Core 1 | . . 1 . Reactor . | . . . . Propulsion 9 | 2 4 2 1 Treads 3 | . . 2 1 Leg . | . . . . Wheel 2 | 2 . . . Hover 4 | . 4 . . Flight . | . . . . Utility 9 | 1 5 3 . Device 5 | 1 3 1 . Storage . | . . . . Processor 1 | . 1 . . Hackware 1 | . 1 . . Protection 2 | . . 2 . Artifact . | . . . . Weapon 10 | 2 3 4 1 Energy Gun 2 | 2 . . . Energy Cannon 2 | . 2 . . Ballistic Gun 3 | . . 2 1 Ballistic Cannon . | . . . . Launcher . | . . . . Special Weapon 2 | . . 2 . Impact Weapon 1 | . 1 . . Slashing Weapon . | . . . . Piercing Weapon . | . . . . Special Melee Weapon . | . . . . Unidentified Prototypes . | . . . . Parts Lost 2 | . . 2 . Power 1 | . . 1 . Propulsion . | . . . . Utility . | . . . . Weapon 1 | . . 1 . Highest Loss Streak 1 | . . 1 . To Critical Strikes . | . . . . Average Backups 1 | . . 1 1 Power . | . . . . Propulsion . | . . . . Utility . | . . . . Weapon 1 | . . 1 1 Tool/Special . | . . . . Unused Backups . | . . . . Power . | . . . . Propulsion . | . . . . Utility . | . . . . Weapon . | . . . . Tool/Special . | . . . . Average Slot Usage (%) 83 | . 96 79 79 Engine 8 | . 15 7 5 Core 4 | . . 5 6 Treads 4 | . . 5 17 Hover 14 | . 25 12 . Device 16 | . 22 15 12 Processor 4 | . . 6 6 Hackware 6 | . 9 6 6 Protection 3 | . . 4 6 Energy Gun 2 | . 10 . . Energy Cannon 2 | . 9 . . Ballistic Gun 3 | . . 4 12 Impact Weapon 5 | . 2 6 5 Peak Build Rating 45 | 8 20 42 45 Average Rating 32 | 6 15 36 43 On Entrance 16 | . 8 20 38 Avg Prop Armor Cover (%) . | . . . . Naked Turns . | . . . . Heaviest Build 46 | 8 16 39 46 Greatest Support 65 | 20 23 45 65 Greatest Overweight (x) 2 | 2 1 1 . Average Overweight (x) . | . . . . Largest Inventory Capacity 2 | 1 1 2 2 Average Capacity 1 | . 1 1 2 Most Carried 2 | . 1 2 2 Average Carried 1 | . . 1 1 Final Capacity 2 | 1 1 2 2 Final Carried 2 | . 1 2 1 Class Distribution -------------------- 63% | Scavenger-Mutant 31% | Derelict-Mutant Dominant Class ---------------- Scavenger-Mutant | -10/Materials Scavenger-Mutant | -10/Subcaves Scavenger-Mutant | -9/Recycling Resources | -11 -10 -10 -9 ----------- Run | Yrd Mat Sub Rec Matter Collected 608 | 260 131 155 62 Remotely . | . . . . Salvage Created 1270 | 199 647 347 77 Parts 86 | 15 45 21 5 Haulers Intercepted 2 | . 2 . . Recyclers Shooed 1 | . 1 . . Parts Field Recycled . | . . . . Retrieved Matter . | . . . . Parts Self-Destructed 10 | . . 10 . Prevented . | . . . . Parts Restored . | . . . . Kills | -11 -10 -10 -9 ------- Run | Yrd Mat Sub Rec Combat Hostiles Destroyed 33 | . 13 19 1 Melee 9 | . . 9 . Guns 14 | . 11 2 1 Cannons 4 | . 2 2 . Classes Destroyed 11 | 3 6 2 . Worker 6 | 2 4 . . Builder 2 | . 2 . . Tunneler 5 | 5 . . . Hauler 2 | . 2 . . Recycler 2 | 1 1 . . Operator 3 | . 3 . . Watcher 3 | . 3 . . Swarmer 6 | . 3 3 . Grunt 10 | . 10 . . Sentry 2 | . . 1 1 Subdweller 15 | . . 15 . Best Kill Streak 6 | 3 6 2 1 Combat Bots Only 3 | . 3 2 1 Max Kills in Single Turn 2 | 1 2 1 1 Gunslinging 1 | . 1 . . Exploded . | . . . . Melee 1 | . . 1 . Uniques/NPCs Destroyed . | . . . . Combat | -11 -10 -10 -9 -------- Run | Yrd Mat Sub Rec Hostile Shots Fired 206 | . 50 142 14 Missed 58 | . 16 38 4 Hits 148 | . 34 104 10 Projectile 148 | . 34 104 10 Critical Strikes 1 | . 1 . . Damage Taken 2546 | . 380 1945 221 Core 1841 | . 300 1416 125 Absorbed by Shields . | . . . . Redirected to Core 1448 | . 261 1077 110 Core Remaining (%) 100 | 100 . . . Volleys Fired 225 | 17 181 21 6 Largest 3 | 2 2 2 3 Hottest 136 | 100 136 136 84 Shots Fired 383 | 34 312 23 14 Gun 166 | 34 114 4 14 Cannon 202 | . 198 4 . Launcher . | . . . . Special 15 | . . 15 . Kinetic 18 | . . 4 14 Thermal 365 | 34 312 19 . Explosive . | . . . . Electromagnetic . | . . . . Robot Hit Streak 33 | 7 13 20 33 Robot Miss Streak 9 | 2 9 1 . Penetration Max . | . . . . Secondary Targets 3 | . 3 . . Max Gunslinging Chain 1 | . 1 . . Shots Hit Robots 211 | 18 87 93 13 Core Hits 69 | 9 38 19 3 Critical Kills 1 | . . 1 . Critical Parts Destroyed 5 | . . 5 . Critical Strikes 23 | 2 9 12 . Burn 12 | 2 9 1 . Smash 11 | . . 11 . Melee Attacks 141 | . 26 107 8 Impact 141 | . 26 107 8 Slashing . | . . . . Piercing . | . . . . Sneak Attacks 2 | . 2 . . Combat Hostiles . | . . . . Follow-up Attacks . | . . . . Damage Inflicted 5336 | 236 1404 3453 243 Guns 1438 | 236 887 72 243 Cannons 444 | . 423 21 . Explosions . | . . . . Melee 3290 | . 94 3196 . Ramming . | . . . . Kinetic 315 | . . 72 243 Thermal 1731 | 236 1310 185 . Explosive . | . . . . Electromagnetic . | . . . . Impact 3290 | . 94 3196 . Slashing . | . . . . Piercing . | . . . . Highest Corruption . | . . . . Average Corruption . | . . . . Corruption Purged . | . . . . Corruption Blocked . | . . . . Overload Shots . | . . . . Overflow Damage 469 | . 49 420 . Projectiles 12 | . 12 . . Explosions . | . . . . Melee 457 | . 37 420 . Knockbacks 12 | . . 12 . Impact 12 | . . 12 . Kinetic . | . . . . Secondary . | . . . . Self-Inflicted Damage 74 | . . . 74 Shots 1 | . . . 1 Rammed . | . . . . Targets Rammed . | . . . . Kicked . | . . . . Crushed . | . . . . Highest Temperature 96 | 24 96 . 29 Average Temperature 22 | 9 24 . 16 Received Heat Transfer 642 | . 201 396 45 Siege Activations . | . . . . Martial Activations . | . . . . Shielding Activations . | . . . . Robots Disrupted . | . . . . Combat Hostiles . | . . . . Robots Corrupted 11 | . 2 9 . Combat Hostiles 9 | . . 9 . Parts Fried 10 | . 5 5 . Impact Corruptions 25 | . 3 22 . Robots Melted . | . . . . Combat Hostiles . | . . . . Parts Melted 14 | 2 12 . . Heat Transferred 6244 | 851 3996 1397 . Parts Sabotaged . | . . . . Parts Stolen . | . . . . Parts Stripped . | . . . . Power Chain Reactions . | . . . . Alert | -11 -10 -10 -9 ------- Run | Yrd Mat Sub Rec Maximum Alert Level 2 | . 2 . . Low Security (%) 76 | 100 68 . 100 Level 1 15 | . 20 . . Level 2 8 | . 10 . . Level 3 . | . . . . Level 4 . | . . . . Level 5 . | . . . . High Security . | . . . . Max Security . | . . . . Peak Influence 524 | 10 524 . 76 Initial 55 | . 3 . 55 Average 145 | 2 179 . 52 Influence Increases 1437 | 40 1041 195 161 Destroy 0b10 Robot/C 360 | . 260 80 20 Destroy 0b10 Robot/NC 110 | 40 70 . . Destroy Leader 70 | . 60 10 . Successful Hack 23 | . 13 . 10 Disable Machine 615 | . 495 . 120 Destroy Structure 139 | . 128 . 11 Lose Combat Pursuer 120 | . 15 105 . Influence Decreases 1391 | 35 534 592 230 Entered New Map 309 | . 2 247 60 Time Decay 1072 | 35 532 335 170 Lost Part 10 | . . 10 . Squads Dispatched 2 | . 2 . . Investigation . | . . . . Extermination . | . . . . Reinforcement 2 | . 2 . . Assault . | . . . . Garrison . | . . . . Intercept . | . . . . Searches Triggered . | . . . . Construction Impeded . | . . . . Haulers Reinforced . | . . . . Active Scanning Responses . | . . . . Cargo Convoy Interrupts . | . . . . Stealth | -11 -10 -10 -9 --------- Run | Yrd Mat Sub Rec Distress Signals 2 | . 2 . . Communications Jammed . | . . . . Distress Signals . | . . . . Times Spotted 58 | . 23 32 3 Peak Tracking Total 6 | . 5 6 2 Tactical Retreats 3 | . 1 2 . Traps | -11 -10 -10 -9 ------- Run | Yrd Mat Sub Rec Traps Triggered 3 | . . 3 . Indirectly . | . . . . Trap Hack Attempts . | . . . . Triggered . | . . . . Disarmed . | . . . . Reprogrammed . | . . . . Reused . | . . . . Traps Extracted . | . . . . Installed . | . . . . Triggered . | . . . . Machines | -11 -10 -10 -9 ---------- Run | Yrd Mat Sub Rec Machines Disabled 42 | . 33 1 8 Max in Single Turn 2 | . 2 1 1 Machines Repaired . | . . . . Machines Dismantled . | . . . . Machines Sabotaged . | . . . . Overloaded Fab Kills . | . . . . Hacking | -11 -10 -10 -9 --------- Run | Yrd Mat Sub Rec Machines Accessed 16 | . 8 2 6 Terminals 9 | . 6 . 3 Fabricators . | . . . . Repair Stations . | . . . . Recycling Units 5 | . 2 . 3 Scanalyzers . | . . . . Garrison Access . | . . . . Total Hacks 52 | . 21 13 18 Successful 42 | . 14 13 15 Failed 10 | . 7 . 3 Catastrophic . | . . . . Database Lockouts . | . . . . Manual 32 | . 19 . 13 Terminals 25 | . 15 . 10 Fabricators . | . . . . Repair Stations . | . . . . Recycling Units 14 | . 6 . 8 Scanalyzers . | . . . . Garrison Access . | . . . . Terminal Hacks 18 | . 1 13 4 Record 12 | . . 12 . Part Schematic 2 | . . . 2 Robot Analysis 2 | . 1 . 1 Alert Level 1 | . . . 1 Proto ID Catalog 1 | . . 1 . Fabricator Hacks . | . . . . Repair Station Hacks . | . . . . Recycling Unit Hacks 5 | . 2 . 3 Report Inventory 4 | . 1 . 3 Retrieve Components 1 | . 1 . . Scanalyzer . | . . . . Garrison Access Hacks . | . . . . Unauthorized Hacks 19 | . 11 . 8 Terminals 13 | . 8 . 5 Assimilate 1 | . 1 . . Botnet 4 | . 2 . 2 Skim 8 | . 5 . 3 Fabricators . | . . . . Repair Stations . | . . . . Recycling Units 6 | . 3 . 3 Reject 3 | . 2 . 1 Recyclers 1 | . . . 1 Mask 2 | . 1 . 1 Scanalyzers . | . . . . Garrison Access . | . . . . Data Cores Recovered . | . . . . Used . | . . . . Hacking Detections 11 | . 8 . 3 Full Trace Events . | . . . . Feedback Events . | . . . . Feedback Blocked . | . . . . Robot Schematics Acquired . | . . . . Robots Built . | . . . . Authchips . | . . . . Time . | . . . . Total Robot Build Rating . | . . . . Part Schematics Acquired 2 | . . . 2 Parts Built . | . . . . Authchips . | . . . . Time . | . . . . Total Part Build Rating . | . . . . Part Studies Acquired . | . . . . Parts Repaired . | . . . . Time . | . . . . Parts Recycled . | . . . . Recycled Matter . | . . . . Retrieved Matter . | . . . . Retrieved Components 10 | . 10 . . Parts Scanalyzed . | . . . . Part Schematics Acquired . | . . . . Parts Damaged . | . . . . Bothacking | -11 -10 -10 -9 ------------ Run | Yrd Mat Sub Rec Used RIF Installer . | . . . . Robots Hacked . | . . . . Non-combat . | . . . . Combat . | . . . . Robot Hacks Applied . | . . . . Relay Couplers Released . | . . . . Fabnet Peak Effective % . | . . . . Robots Rewired . | . . . . Allies Hacked . | . . . . Hacks Repelled . | . . . . Allies | -11 -10 -10 -9 -------- Run | Yrd Mat Sub Rec Total Allies 1 | . 1 . . Largest Group 1 | . 1 . . Highest-Rated Group 10 | . 10 . . Highest-Rated Ally 10 | . 10 . . Total Orders . | . . . . Ally Attacks . | . . . . Total Damage . | . . . . Kills . | . . . . Allies Corrupted . | . . . . Allies Melted . | . . . . Intel | -11 -10 -10 -9 ------- Run | Yrd Mat Sub Rec Active Infowar (turns) 7209 | 90 1516 5245 358 Sensors 2 | . 2 . . Terrain 7209 | 90 1516 5245 358 ECM 5 | . 5 . . Robot Analysis Total 2 | . 1 . 1 Derelict Logs Recovered 1 | . . 1 . Drone Launches . | . . . . Drone Recoveries . | . . . . Exploration | -11 -10 -10 -9 ------------- Run | Yrd Mat Sub Rec Turns Passed 7246 | 127 1516 5245 358 Spaces Moved 3872 | 39 1260 2437 136 Core 7 | 7 . . . Treads 1227 | . . 1091 136 Legs . | . . . . Wheels 61 | 32 29 . . Hover 2577 | . 1231 1346 . Flight . | . . . . Fastest Speed 50 | 50 52 52 160 Average Speed 98 | 79 57 115 160 Slowest Speed 260 | 150 120 260 160 Overloaded Moves . | . . . . Propulsion Burnouts . | . . . . Robots Hopped . | . . . . Potential Cave-ins . | . . . . Cave-ins Triggered . | . . . . Exploration Rate (%) 58 | 3 97 94 39 Regions Visited 3 Branch Regions 2 Pre-discovered Areas 1 | . . 1 . Known Exits Taken . | . . . . Unknown Exits Taken 3 | 1 1 1 . Scrap Searched 16 | . . 16 . Spaces Dug 13 | . 6 7 . Terrain Destroyed 149 | . 133 7 9 Melee 13 | . 6 7 . Projectile 1 | . 1 . . AOE 135 | . 126 . 9 Terrain Rammed . | . . . . Walls Destroyed . | . . . . Machines Disabled . | . . . . Actions | -11 -10 -10 -9 --------- Run | Yrd Mat Sub Rec Total 6676 | 97 1694 4634 251 Wait 2300 | 36 180 1987 97 Move 3869 | 38 1259 2436 136 Hop . | . . . . Pick Up 5 | . 2 3 . Fast Attach 29 | 6 10 11 2 Attach 3 | . 1 1 1 Detach 1 | . 1 . . Swap 5 | . 3 1 1 Drop 19 | . 7 12 . Fire 225 | 17 181 21 6 Melee 141 | . 26 107 8 Ram . | . . . . Kick . | . . . . Crush . | . . . . Escape Stasis . | . . . . Rewire . | . . . . Trap . | . . . . Miscellaneous 79 | . 24 55 . Route ------- -11/Scrapyard -10/Materials (discovered 6 exits: *Mat x3 / [*Min x2] / *Sub) -10/Subcaves (discovered 4 exits: *Mat x2 / *Rec / [*Scr]) -9/Recycling (discovered 1 exit: [*Fac]) History --------- Turn | Location | Event 3 | -11/Scrapyard | Upgraded with Propulsion slot (x1) 3 | -11/Scrapyard | Upgraded with Utility slot (x2) 3 | -11/Scrapyard | Upgraded with Weapon slot (x1) 43 | -11/Scrapyard | Discovered new exit (range 16) 128 | -11/Scrapyard | Entered Materials 173 | -10/Materials | Discovered new exit (range 14) 236 | -10/Materials | Discovered new exit (range 9) 355 | -10/Materials | Discovered new exit (range 11) 441 | -10/Materials | Discovered new exit (range 13) 543 | -10/Materials | Discovered new exit (range 15) 616 | -10/Materials | Build established: Scavenger-Mutant 618 | -10/Materials | Learned Storage stockpile data 673 | -10/Materials | Learned Storage trap positions 717 | -10/Materials | Learned Storage emergency access door positions 753 | -10/Materials | Learned Storage stockpile data 773 | -10/Materials | Reached level 2 779 | -10/Materials | Loaded intel: 1 repair station location 800 | -10/Materials | Identified exit to Materials 815 | -10/Materials | Learned Materials emergency access door positions 841 | -10/Materials | Loaded intel: 8 terminal locations 884 | -10/Materials | Upgraded with Power slot (x1) 884 | -10/Materials | Upgraded with Propulsion slot (x1) 923 | -10/Materials | Learned location of 2 exits from Mines 1324 | -10/Materials | Reached level 3 1367 | -10/Materials | Upgraded with Utility slot (x1) 1644 | -10/Materials | Entered Subcaves 1645 | -10/Subcaves | Approached by a straggling Scientist 1645 | -10/Subcaves | Identified exit to Materials 1646 | -10/Subcaves | Reached level 4 1761 | -10/Subcaves | A swath of the cavern ceiling suddenly collapsed 2073 | -10/Subcaves | A swath of the cavern ceiling suddenly collapsed 2151 | -10/Subcaves | Visited 4L-MR0's lab 2159 | -10/Subcaves | Found Meta Core 2160 | -10/Subcaves | Attached Meta Core, gained temporary slots: Propulsion, Utility, Weapon 2305 | -10/Subcaves | Upgraded with Utility slot (x1) 3052 | -10/Subcaves | Discovered new exit (range 15) 3433 | -10/Subcaves | Discovered exit to Materials (range 11) 3844 | -10/Subcaves | Visited Clippyterm 3847 | -10/Subcaves | Learned location of Extension (-6) 3847 | -10/Subcaves | Learned 40 Factory zone layouts 4192 | -10/Subcaves | Learned 2 Materials zone layouts 4213 | -10/Subcaves | Disturbed a concealed Subdweller 4620 | -10/Subcaves | Shifting Twisted Machinery released Spk. Treads 4632 | -10/Subcaves | Shifting Twisted Machinery released Sub. Optics 4922 | -10/Subcaves | Build established: Derelict-Mutant 5882 | -10/Subcaves | Core integrity fell below 50% 6889 | -10/Subcaves | Entered Recycling 6891 | -9/Recycling | Reached level 5 6894 | -9/Recycling | Core integrity fell below 20% 6897 | -9/Recycling | Upgraded with Weapon slot (x1) 7139 | -9/Recycling | Discovered new exit (range 15) 7233 | -9/Recycling | Build established: Scavenger-Mutant 7247 | -9/Recycling | Destroyed by Y-45 Defender with Heavy Assault Rifle Last Messages --------------- Testing... Terminal linked with 2 systems. Please expand to 2 more systems! >>Schematic(Recoil Stabilizer) Downloading schematic... Recoil Stabilizer Rating: 3 Schematic downloaded. 07139_ EXIT=FOUND 07175_ Connecting with Recycling Unit... >>Recycling(Report) Matter reserves: 0 Inventory: Particle Cannon (58%) Hvy. EM Pulse Gun (58%) Visual Processing Unit (68%) 07175_ Recycling Unit disabled. 07175_ Hvy. EM Pulse Gun tumbles out of recycling unit. 07192_ Processing Tank disabled. 07231_ Y-45 Defender springs to life. Map ----- +----------------------------------------------------+ | ????????????????????????????????? ? ? ### ###### | | ???????????????????????????? ?? ?? ### ###### | | ???????????????????????????? ?? ? ? ### ###### | | ??????????????????????????? ? ? ? ?## ###%%% | | ???????????????????????????????? ?? ### ###% % | | ??????????????????????????? ??#?##+######## | | r??????????????????????????????### ####"""# ##+ | | ??????????????????????????????#?## ####" "# # | | ???????????????????????????? #### [ # | | ????????????????????????????? #### # | | ??????????????????????#??#? ??## # | | ?????????????????????#??#?# + | | ???r????????????##?#??###?# ############# #### | | ?????????????????#####??## ############# #### " | | ???????????????#????#####?# ###??######## #### " | | ???????????????##?#?#??#?##r #?###########r#### | | ???????????????##???##???## ####### #### | | ??????????????#????#???#?## #?##### "" "" #### | | ?????????????????##?#?#?### ####### """ """ #### | | ??????????????###??######?# #?##### """ """ #### | | ?????????????############## ####### """ """ #### | | ?????????????# # ####?## """ """ #### | | ????????????## ! !# ##?### #### | | ????????????## [ # #???#?# #### | | ???????????#?# ! # ###########+######## | | ?????????????# @# ### | | ?????????????#! Y < ### | | ???????????#?# = % # ### | | ?????????????#% #######################? | | ?????????? ??# ##############?####?#?#? | | ?????????? ### *[] #?##?##############?#??? | | ?????????????# ##?#######?########??### | | ???????????#?# [ ##?########?####??###??? | | ?????????????########################?#??##?###### | | ??????????????##?#??###?#########???##?####?##??## | | ?????????????#????##??##?#?###########??#######??# | | ?????????????????????##?###??####??###?####??#??## | | ????????????????##?#?#????##??#?#?###?##?????????? | | ???????????????????#??#?#?######??##?#?##??####??? | | | | | | | | | | | | | | | | | | | | | | | +----------------------------------------------------+ Best States ------------- Heat Dissipation 57 Energy Generation 24 Energy Capacity 345 Matter Stores 300 Matter Capacity 300 Sight Range 16 Robot Scan Range 14 Terrain Scan Range 16 Terrain Scan Density 310 ECM Strength 1 Armor Coverage 800 Evasion (%) 54 Targeting Accuracy 6 Recoil Reduction 3 Offensive Hacking 10 Item Schematics ----------------- Autogun | -9/Recycling | Hacked Recoil Stabilizer | -9/Recycling | Hacked Robot Schematics ------------------ None Fabricated ------------ Nothing Repaired ---------- Nothing Studied --------- None Alien Tech Used ----------------- None Achievements -------------- None Challenges ------------ None RPGLIKE | -11 -10 -10 -9 --------- Run | Yrd Mat Sub Rec Levels Raised 4 | . 2 1 1 XP Earned 10255 | 3000 4075 1450 1730 XP Spent 8230 | 2940 2590 1900 800 Upgrades 18 | 10 5 2 1 Power Slot 1 | . 1 . . Propulsion Slot 2 | 1 1 . . Utility Slot 4 | 2 1 1 . Weapon Slot 2 | 1 . . 1 Heat Dissipation 3 | 2 1 . . Mass Support 1 | . 1 . . Inventory Capacity 2 | 1 . 1 . Terrain Scan Density 3 | 3 . . . Protomatter Created 591 | . 224 367 . Integrity Restored 1420 | . 429 991 . Core 1238 | . 300 938 . Parts 182 | . 129 53 . Protomatter Decayed 128 | . 75 53 . Game ------ Seed SlugSalvageWartreads Manual? 0 Play Time 01:18:06 Cumulative 169.2 hours Start 2026.03.05 @ 10:58:23 End 2026.03.05 @ 11:42:11 Sessions 1 Manual Loads 0 Difficulty Rogue Special Mode Winter2019/RPGLIKE Game No. 107 Rogue 107 Adventurer 0 Explorer 0 Win Type - Total 1 Types 0/0/0/1/0/0/0/0/0/0 Lore% 69 Gallery% 47 Achievement% 49 Wizard Run 0 Options --------- Layout 0 ASCII 0 Keyboard 0 Movement Mouse Keybinds 0 Fullscreen 2 Font 24/Smallcaps Map View 76x50 Zoom Use 0% Tactical HUD 1 Map Filters NONE Filters NONE Steam 1 RUN: 5c19cdaa-7cc4-4bd5-b4a7-cd3c5c784392